Workbook

Sheet tabula (hidden)
C2: ='1-50'!C2 -> Tēva dienas viktorīna LIVE (tiešsaistē/vebinārā) | 2024.gada 8.septembris
B3: Grupa | C3: # | D3: Dalībnieks | Raunds | Tēma | Max punkti raundā (bez bonusiem) | E3: 1 | F3: 2 | G3: 3 | H3: 4 | I3: 5 | J3: 6 | K3: 7 | L3: 8 | M3: 9 | N3: 10 | O3: KOPĀ | P3: Laiks kopā | Q3: Pareizās atbildes (max) | R3: Vid.laiks uz 1 pareizo atb.
E4: ='1-50'!E4 -> Pavediens | F4: ='1-50'!F4 -> Vizuālais | G4: ='1-50'!G4 -> Ekspresis | H4: ='1-50'!H4 -> Burtu mīkla | I4: ='1-50'!I4 -> Ķēde | J4: ='1-50'!J4 -> Latvija | K4: ='1-50'!K4 -> Risks: Tēvi un dēli seriālos un kino | L4: ='1-50'!L4 -> Kas kopīgs? | M4: ='1-50'!M4 -> Liekais pazūd ārpus kastes | N4: ='1-50'!N4 -> Audio
E5: ='1-50'!E5 -> 150 | F5: ='1-50'!F5 -> 150 | G5: ='1-50'!G5 -> 180 | H5: ='1-50'!H5 -> 180 | I5: ='1-50'!I5 -> 175 | J5: ='1-50'!J5 -> 150 | K5: ='1-50'!K5 -> 120 | L5: ='1-50'!L5 -> 180 | M5: ='1-50'!M5 -> 150 | N5: ='1-50'!N5 -> 150 | O5: =SUM(E5:N5) -> 1585
D6: Vidēji p-ti raundā | E6: =ROUND(AVERAGE(E7:E124),1) -> 93 | F6: 140.8 | G6: 134.8 | H6: 83.4 | I6: 87.4 | J6: 86.4 | K6: 30.7 | L6: 105.3 | M6: 70.2 | N6: 62.2 | O6: 894.2 | Q6: =6+6+12+6+7+6+6+7+6+6 -> 68
B7: 1 | C7: 1 | D7: Sindija JV | E7: 103 | F7: 151 | G7: 187 | H7: 121 | I7: 136 | J7: 122 | K7: 67 | L7: 144 | M7: 89 | N7: 112 | O7: 1232 | P7: 05 min. 21,161 | Q7: 58 | R7: 05,537 sek.
B8: 3 | C8: 2 | D8: Bunkurs_13 | E8: 122 | F8: 144 | G8: 172 | H8: 127 | I8: 156 | J8: 108 | K8: 74 | L8: 158 | M8: 106 | N8: 65 | O8: 1232 | P8: 07 min. 27,665 | Q8: 61 | R8: 07,339 sek.
B9: 1 | C9: 3 | D9: VMR | E9: 101 | F9: 157 | G9: 174 | H9: 121 | I9: 135 | J9: 125 | K9: 68 | L9: 151 | M9: 92 | N9: 97 | O9: 1221 | P9: 06 min. 48,451 | Q9: 60 | R9: 06,808 sek.
B10: 3 | C10: 4 | D10: BunS | E10: 112 | F10: 154 | G10: 149 | H10: 119 | I10: 92 | J10: 119 | K10: 80 | L10: 150 | M10: 83 | N10: 108 | O10: 1166 | P10: 11 min. 56,735 | Q10: 65 | R10: 11,027 sek.
B11: 1 | C11: 5 | D11: FraRix | E11: 101 | F11: 150 | G11: 167 | H11: 119 | I11: 141 | J11: 104 | K11: 40 | L11: 147 | M11: 87 | N11: 108 | O11: 1164 | P11: 10 min. 20,801 | Q11: 63 | R11: 09,854 sek.
B12: 1 | C12: 6 | D12: Bandītu perēklis | E12: 129 | F12: 168 | G12: 125 | H12: 107 | I12: 118 | J12: 127 | K12: 74 | L12: 126 | M12: 64 | N12: 119 | O12: 1157 | P12: 08 min. 17,947 | Q12: 58 | R12: 08,585 sek.
B13: 2 | C13: 7 | D13: MELDRI | E13: 99 | F13: 160 | G13: 128 | H13: 113 | I13: 121 | J13: 134 | K13: 81 | L13: 118 | M13: 58 | N13: 118 | O13: 1130 | P13: 09 min. 41,449 | Q13: 61 | R13: 09,532 sek.
B14: 3 | C14: 8 | D14: Mazkaloriju biskvīts | E14: 114 | F14: 157 | G14: 141 | H14: 111 | I14: 105 | J14: 136 | K14: 90 | L14: 132 | M14: 51 | N14: 78 | O14: 1115 | P14: 11 min. 08,416 | Q14: 61 | R14: 10,958 sek.
B15: 2 | C15: 9 | D15: Bugatti 21023 | E15: 129 | F15: 164 | G15: 142 | H15: 112 | I15: 124 | J15: 102 | K15: 51 | L15: 141 | M15: 89 | N15: 53 | O15: 1107 | P15: 08 min. 23,053 | Q15: 57 | R15: 08,825 sek.
B16: 2 | C16: 10 | D16: Visu zinām | E16: 104 | F16: 157 | G16: 167 | H16: 99 | I16: 108 | J16: 107 | K16: 65 | L16: 89 | M16: 70 | N16: 94 | O16: 1060 | P16: 10 min. 37,968 | Q16: 59 | R16: 10,813 sek.
B17: 2 | C17: 11 | D17: Jāzepa Banda | E17: 114 | F17: 166 | G17: 145 | H17: 83 | I17: 100 | J17: 86 | K17: 70 | L17: 133 | M17: 84 | N17: 67 | O17: 1048 | P17: 10 min. 25,682 | Q17: 58 | R17: 10,788 sek.
B18: 3 | C18: 12 | D18: Zvirbulis122 | E18: 98 | F18: 124 | G18: 157 | H18: 79 | I18: 116 | J18: 108 | K18: 63 | L18: 133 | M18: 82 | N18: 83 | O18: 1043 | P18: 10 min. 59,089 | Q18: 59 | R18: 11,171 sek.
B19: 1 | C19: 13 | D19: nezinu | E19: 92 | F19: 148 | G19: 131 | H19: 97 | I19: 94 | J19: 105 | K19: 53 | L19: 150 | M19: 81 | N19: 70 | O19: 1021 | P19: 09 min. 49,395 | Q19: 57 | R19: 10,340 sek.
B20: 3 | C20: 14 | D20: kemeru tantas | E20: 119 | F20: 149 | G20: 158 | H20: 78 | I20: 58 | J20: 110 | K20: 44 | L20: 109 | M20: 94 | N20: 86 | O20: 1005 | P20: 07 min. 05,738 | Q20: 52 | R20: 08,187 sek.
B21: 3 | C21: 15 | D21: Vilciņi | E21: 100 | F21: 145 | G21: 181 | H21: 107 | I21: 78 | J21: 92 | K21: 28 | L21: 81 | M21: 98 | N21: 86 | O21: 996 | P21: 10 min. 33,525 | Q21: 58 | R21: 10,923 sek.
B22: 3 | C22: 16 | D22: Sālsvārnas Salas Vasarnieki | E22: 100 | F22: 153 | G22: 140 | H22: 109 | I22: 103 | J22: 116 | K22: 60 | L22: 106 | M22: 78 | N22: 17 | O22: 982 | P22: 05 min. 57,091 | Q22: 48 | R22: 07,439 sek.
B23: 1 | C23: 17 | D23: Te tikai Dieviņš palīdzēs | E23: 117 | F23: 110 | G23: 149 | H23: 108 | I23: 52 | J23: 100 | K23: 77 | L23: 118 | M23: 72 | N23: 61 | O23: 964 | P23: 12 min. 14,212 | Q23: 58 | R23: 12,659 sek.
B24: 1 | C24: 18 | D24: Pundurplanēta | E24: 100 | F24: 128 | G24: 141 | H24: 109 | I24: 87 | J24: 127 | K24: 25 | L24: 125 | M24: 80 | N24: 41 | O24: 963 | P24: 06 min. 53,883 | Q24: 50 | R24: 08,278 sek.
B25: 3 | C25: 19 | D25: Burkānciema egles | E25: 99 | F25: 139 | G25: 155 | H25: 93 | I25: 97 | J25: 88 | K25: 47 | L25: 100 | M25: 61 | N25: 84 | O25: 963 | P25: 09 min. 41,270 | Q25: 54 | R25: 10,764 sek.
C26: 20 | D26: Inspektors JĀNIS | E26: 118 | F26: 151 | G26: 116 | H26: 89 | I26: 85 | J26: 93 | K26: 70 | L26: 105 | M26: 64 | N26: 63 | O26: 954 | P26: 12 min. 05,285 | Q26: 57 | R26: 12,724 sek.
C27: 21 | D27: Alise | E27: 127 | F27: 144 | G27: 176 | H27: 50 | I27: 64 | J27: 93 | K27: 47 | L27: 138 | M27: 50 | N27: 56 | O27: 945 | P27: 06 min. 33,557 | Q27: 49 | R27: 08,032 sek.
C28: 22 | D28: Imantā futbola nav | E28: 121 | F28: 137 | G28: 121 | H28: 126 | I28: 101 | J28: 87 | K28: -21 | L28: 133 | M28: 97 | N28: 40 | O28: 942 | P28: 06 min. 54,014 | Q28: 49 | R28: 08,449 sek.
C29: 23 | D29: Bugatti Gožār | E29: 119 | F29: 153 | G29: 160 | H29: 97 | I29: 58 | J29: 68 | K29: 67 | L29: 103 | M29: 55 | N29: 42 | O29: 922 | P29: 08 min. 44,309 | Q29: 51 | R29: 10,281 sek.
C30: 24 | D30: Pitijs | E30: 91 | F30: 152 | G30: 173 | H30: 75 | I30: 110 | J30: 63 | K30: 9 | L30: 120 | M30: 86 | N30: 42 | O30: 921 | P30: 06 min. 16,552 | Q30: 47 | R30: 08,012 sek.
C31: 25 | D31: Načo | E31: 79 | F31: 163 | G31: 136 | H31: 74 | I31: 59 | J31: 133 | K31: 30 | L31: 117 | M31: 44 | N31: 78 | O31: 913 | P31: 07 min. 41,197 | Q31: 50 | R31: 09,224 sek.
C32: 26 | D32: Eu, es tak šito zinu | E32: 83 | F32: 140 | G32: 99 | H32: 54 | I32: 84 | J32: 88 | K32: 72 | L32: 149 | M32: 82 | N32: 61 | O32: 912 | P32: 09 min. 54,219 | Q32: 53 | R32: 11,212 sek.
C33: 27 | D33: Panzera vergi | E33: 115 | F33: 140 | G33: 118 | H33: 68 | I33: 93 | J33: 66 | K33: 12 | L33: 131 | M33: 99 | N33: 69 | O33: 911 | P33: 06 min. 52,100 | Q33: 47 | R33: 08,768 sek.
C34: 28 | D34: Šautras šašlikos | E34: 113 | F34: 153 | G34: 102 | H34: 103 | I34: 117 | J34: 86 | K34: -37 | L34: 98 | M34: 86 | N34: 77 | O34: 898 | P34: 09 min. 08,883 | Q34: 51 | R34: 10,762 sek.
C35: 29 | D35: Alfisti | E35: 115 | F35: 153 | G35: 138 | H35: 34 | I35: 81 | J35: 109 | K35: 35 | L35: 98 | M35: 50 | N35: 81 | O35: 894 | P35: 08 min. 22,968 | Q35: 50 | R35: 10,059 sek.
C36: 30 | D36: AneO | E36: 87 | F36: 166 | G36: 192 | H36: 106 | I36: 21 | J36: 38 | K36: 8 | L36: 83 | M36: 69 | N36: 81 | O36: 851 | P36: 04 min. 29,193 | Q36: 43 | R36: 06,260 sek.
C37: 31 | D37: Meistariņi | E37: 89 | F37: 151 | G37: 129 | H37: 63 | I37: 63 | J37: 100 | K37: 19 | L37: 88 | M37: 72 | N37: 68 | O37: 842 | P37: 08 min. 45,821 | Q37: 48 | R37: 10,955 sek.
C38: 32 | D38: Saule20 | E38: 91 | F38: 154 | G38: 118 | H38: 87 | I38: 118 | J38: 44 | K38: 22 | L38: 100 | M38: 80 | N38: 19 | O38: 833 | P38: 06 min. 21,826 | Q38: 44 | R38: 08,678 sek.
C39: 33 | D39: K8K | E39: 70 | F39: 162 | G39: 128 | H39: 80 | I39: 114 | J39: 76 | K39: -29 | L39: 69 | M39: 73 | N39: 82 | O39: 825 | P39: 05 min. 47,044 | Q39: 44 | R39: 07,887 sek.
C40: 34 | D40: Samantas tīni | E40: 102 | F40: 101 | G40: 150 | H40: 83 | I40: 57 | J40: 117 | K40: 39 | L40: 47 | M40: 56 | N40: 64 | O40: 816 | P40: 05 min. 46,203 | Q40: 45 | R40: 07,693 sek.
C41: 35 | D41: Kleopatra un Marks Antonijs | E41: 89 | F41: 141 | G41: 143 | H41: 89 | I41: 92 | J41: 101 | K41: -8 | L41: 65 | M41: 78 | N41: 26 | O41: 816 | P41: 09 min. 10,234 | Q41: 48 | R41: 11,463 sek.
C42: 36 | D42: Saulgruzis | E42: 80 | F42: 120 | G42: 121 | H42: 61 | I42: 65 | J42: 134 | K42: -28 | L42: 105 | M42: 101 | N42: 52 | O42: 811 | P42: 06 min. 11,200 | Q42: 44 | R42: 08,436 sek.
C43: 37 | D43: Čujs, ņuhs un poņa bez poņas | E43: 102 | F43: 147 | G43: 105 | H43: 59 | I43: 57 | J43: 77 | K43: 46 | L43: 112 | M43: 32 | N43: 73 | O43: 810 | P43: 11 min. 44,517 | Q43: 51 | R43: 13,814 sek.
C44: 38 | D44: lielmezi.lv | E44: 111 | F44: 148 | G44: 138 | H44: 53 | I44: 101 | J44: 0 | K44: 0 | L44: 82 | M44: 69 | N44: 107 | O44: 809 | P44: 09 min. 24,140 | Q44: 48 | R44: 11,753 sek.
C45: 39 | D45: Kiukucanes | E45: 70 | F45: 137 | G45: 135 | H45: 106 | I45: 50 | J45: 44 | K45: 20 | L45: 103 | M45: 50 | N45: 82 | O45: 797 | P45: 13 min. 28,527 | Q45: 54 | R45: 14,973 sek.
C46: 40 | D46: ROGAS | E46: 60 | F46: 130 | G46: 131 | H46: 92 | I46: 69 | J46: 72 | K46: 11 | L46: 110 | M46: 70 | N46: 51 | O46: 796 | P46: 12 min. 48,725 | Q46: 51 | R46: 15,073 sek.
C47: 41 | D47: Bumbieri un Kubiks | E47: 66 | F47: 150 | G47: 111 | H47: 67 | I47: 65 | J47: 51 | K47: 26 | L47: 100 | M47: 79 | N47: 76 | O47: 791 | P47: 06 min. 04,372 | Q47: 41 | R47: 08,887 sek.
C48: 42 | D48: Šašliks un Marināde | E48: 79 | F48: 145 | G48: 147 | H48: 57 | I48: 139 | J48: 79 | K48: -5 | L48: 51 | M48: 48 | N48: 43 | O48: 783 | P48: 10 min. 07,314 | Q48: 48 | R48: 12,652 sek.
C49: 43 | D49: User | E49: 89 | F49: 112 | G49: 124 | H49: 64 | I49: 38 | J49: 75 | K49: 16 | L49: 114 | M49: 94 | N49: 44 | O49: 770 | P49: 09 min. 22,081 | Q49: 46 | R49: 12,219 sek.
C50: 44 | D50: Stams | E50: 84 | F50: 133 | G50: 88 | H50: 80 | I50: 99 | J50: 78 | K50: 6 | L50: 128 | M50: 38 | N50: 31 | O50: 765 | P50: 09 min. 23,088 | Q50: 46 | R50: 12,241 sek.
C51: 45 | D51: Jāņa Sieriņi | E51: 98 | F51: 97 | G51: 101 | H51: 62 | I51: 86 | J51: 80 | K51: 45 | L51: 96 | M51: 89 | N51: 9 | O51: 763 | P51: 09 min. 19,759 | Q51: 45 | R51: 12,439 sek.
C52: 46 | D52: Bumba | E52: 53 | F52: 129 | G52: 122 | H52: 52 | I52: 63 | J52: 71 | K52: 27 | L52: 110 | M52: 60 | N52: 69 | O52: 756 | P52: 09 min. 29,400 | Q52: 46 | R52: 12,378 sek.
C53: 47 | D53: Pārdaugavas atbildes | E53: 93 | F53: 135 | G53: 186 | H53: 44 | I53: 84 | J53: 21 | K53: -5 | L53: 78 | M53: 66 | N53: 44 | O53: 746 | P53: 05 min. 13,414 | Q53: 40 | R53: 07,835 sek.
C54: 48 | D54: Miksons un Co | E54: 43 | F54: 152 | G54: 129 | H54: 109 | I54: 71 | J54: 48 | K54: 36 | L54: 59 | M54: 69 | N54: 16 | O54: 732 | P54: 06 min. 10,656 | Q54: 40 | R54: 09,266 sek.
C55: 49 | D55: 23.dzīvoklis | E55: 67 | F55: 135 | G55: 87 | H55: 51 | I55: 70 | J55: 58 | K55: 10 | L55: 107 | M55: 74 | N55: 70 | O55: 729 | P55: 08 min. 30,907 | Q55: 42 | R55: 12,164 sek.
C56: 50 | D56: Duduls | E56: 87 | F56: 146 | G56: 92 | H56: 22 | I56: 91 | J56: 73 | K56: 17 | L56: 92 | M56: 41 | N56: 33 | O56: 694 | P56: 06 min. 36,658 | Q56: 39 | R56: 10,171 sek.
C57: 51 | D57: Just80% | E57: 89 | F57: 104 | G57: 79 | H57: 77 | I57: 74 | J57: 86 | K57: 27 | L57: 55 | M57: 47 | N57: 38 | O57: 676 | P57: 12 min. 17,100 | Q57: 47 | R57: 15,683 sek.
C58: 52 | D58: Bunkeristi | E58: 53 | F58: 122 | G58: 118 | H58: 68 | I58: 63 | J58: 84 | K58: -20 | L58: 96 | M58: 39 | N58: 35 | O58: 658 | P58: 06 min. 34,644 | Q58: 37 | R58: 10,666 sek.
C59: 53 | D59: Jāņabērns | E59: 58 | F59: 120 | G59: 142 | H59: 27 | I59: 104 | J59: 61 | K59: 11 | L59: 65 | M59: 26 | N59: 41 | O59: 655 | P59: 10 min. 39,055 | Q59: 43 | R59: 14,862 sek.
C60: 54 | D60: Zizzle | E60: 56 | F60: 129 | G60: 92 | H60: 90 | I60: 72 | J60: 41 | K60: -30 | L60: 77 | M60: 70 | N60: 19 | O60: 616 | P60: 07 min. 39,483 | Q60: 36 | R60: 12,763 sek.
C61: 55 | D61: Smaidas | E61: 38 | F61: 103 | G61: 89 | H61: 76 | I61: 39 | J61: 67 | K61: 27 | L61: 61 | M61: 42 | N61: 40 | O61: 582 | P61: 11 min. 45,211 | Q61: 43 | R61: 16,400 sek.
C62: 56 | D62: Kanelūri | E62: 69 | F62: 105 | G62: 101 | H62: 63 | I62: 59 | J62: 60 | K62: -8 | L62: 40 | M62: 66 | N62: 16 | O62: 571 | P62: 08 min. 59,922 | Q62: 38 | R62: 14,208 sek.

Sheet 1-50
C2: Tēva dienas viktorīna LIVE (tiešsaistē/vebinārā) | 2024.gada 8.septembris
B3: Grupa | C3: =tabula!C3 -> # | D3: =tabula!D3 -> Dalībnieks | Raunds | Tēma | Max punkti raundā (bez bonusiem) | E3: =tabula!E3 -> 1 | F3: =tabula!F3 -> 2 | G3: =tabula!G3 -> 3 | H3: =tabula!H3 -> 4 | I3: =tabula!I3 -> 5 | J3: =tabula!J3 -> 6 | K3: =tabula!K3 -> 7 | L3: =tabula!L3 -> 8 | M3: =tabula!M3 -> 9 | N3: =tabula!N3 -> 10 | O3: =tabula!O3 -> KOPĀ | P3: =tabula!P3 -> Laiks kopā | Q3: Pareizās atbildes (max 68) | R3: =tabula!R3 -> Vid.laiks uz 1 pareizo atb.
E4: Pavediens | F4: Vizuālais | G4: Ekspresis | H4: Burtu mīkla | I4: Ķēde | J4: Latvija | K4: Risks: Tēvi un dēli seriālos un kino | L4: Kas kopīgs? | M4: Liekais pazūd ārpus kastes | N4: Audio
E5: 150 | F5: 150 | G5: 180 | H5: 180 | I5: 175 | J5: 150 | K5: 120 | L5: 180 | M5: 150 | N5: 150 | O5: =SUM(E5:N5) -> 1585
D6: =tabula!D6 -> Vidēji p-ti raundā | E6: =ROUND(AVERAGE(E7:E62),2) -> 93.91 | F6: =ROUND(AVERAGE(F7:F62),2) -> 92.77 | G6: 103.16 | H6: 57.89 | I6: 80.38 | J6: 69.71 | K6: 40.63 | L6: 113.2 | M6: 55.07 | N6: 68.8 | O6: 775.52
B7: 1 | C7: 1 | D7: Tētuks DJV | E7: 130 | F7: 111 | G7: 162 | H7: 97 | I7: 165 | J7: 100 | K7: 80 | L7: 149 | M7: 110 | N7: 121 | O7: 1225 | P7: 05 min. 56,846 | Q7: 61 | R7: 05,850 sek.
B8: 3 | C8: 2 | D8: Pundurplanēta | E8: 120 | F8: 118 | G8: 154 | H8: 86 | I8: 170 | J8: 117 | K8: 96 | L8: 145 | M8: 118 | N8: 84 | O8: 1208 | P8: 05 min. 28,348 | Q8: 60 | R8: 05,472 sek.
B9: 1 | C9: 3 | D9: Rupuči, turās! | E9: 137 | F9: 110 | G9: 118 | H9: 126 | I9: 152 | J9: 110 | K9: 103 | L9: 125 | M9: 120 | N9: 91 | O9: 1192 | P9: 06 min. 50,453 | Q9: 60 | R9: 06,841 sek.
B10: 3 | C10: 4 | D10: Bunkurs_13 | E10: 120 | F10: 93 | G10: 131 | H10: 116 | I10: 164 | J10: 92 | K10: 75 | L10: 145 | M10: 109 | N10: 120 | O10: 1165 | P10: 08 min. 17,219 | Q10: 62 | R10: 08,020 sek.
B11: 1 | C11: 5 | D11: Van Tūži | E11: 109 | F11: 117 | G11: 101 | H11: 77 | I11: 140 | J11: 109 | K11: 56 | L11: 165 | M11: 117 | N11: 109 | O11: 1100 | P11: 09 min. 22,160 | Q11: 61 | R11: 09,216 sek.
B12: 1 | C12: 6 | D12: Neļķu iela | E12: 101 | F12: 131 | G12: 87 | H12: 84 | I12: 148 | J12: 86 | K12: 91 | L12: 154 | M12: 89 | N12: 91 | O12: 1062 | P12: 10 min. 57,365 | Q12: 61 | R12: 10,776 sek.
B13: 2 | C13: 7 | D13: VMR | E13: 97 | F13: 89 | G13: 85 | H13: 108 | I13: 161 | J13: 101 | K13: 74 | L13: 69 | M13: 130 | N13: 103 | O13: 1017 | P13: 06 min. 24,110 | Q13: 52 | R13: 07,387 sek.
B14: 3 | C14: 8 | D14: Bandītu perēklis | E14: 124 | F14: 140 | G14: 98 | H14: 69 | I14: 131 | J14: 94 | K14: 45 | L14: 140 | M14: 78 | N14: 74 | O14: 993 | P14: 07 min. 11,964 | Q14: 53 | R14: 08,150 sek.
B15: 2 | C15: 9 | D15: kristiansd | E15: 97 | F15: 104 | G15: 110 | H15: 92 | I15: 117 | J15: 83 | K15: 95 | L15: 129 | M15: 70 | N15: 89 | O15: 986 | P15: 09 min. 58,899 | Q15: 57 | R15: 10,507 sek.
B16: 2 | C16: 10 | D16: Inspektora tētis | E16: 133 | F16: 129 | G16: 97 | H16: 78 | I16: 99 | J16: 76 | K16: 54 | L16: 140 | M16: 89 | N16: 85 | O16: 980 | P16: 08 min. 55,197 | Q16: 56 | R16: 09,557 sek.
B17: 2 | C17: 11 | D17: Pirmie matiņi | E17: 107 | F17: 118 | G17: 79 | H17: 81 | I17: 85 | J17: 137 | K17: 74 | L17: 158 | M17: 21 | N17: 120 | O17: 980 | P17: 09 min. 19,103 | Q17: 56 | R17: 09,984 sek.
B18: 3 | C18: 12 | D18: Ļoti labi | E18: 110 | F18: 78 | G18: 119 | H18: 101 | I18: 78 | J18: 90 | K18: 66 | L18: 164 | M18: 105 | N18: 66 | O18: 977 | P18: 11 min. 17,549 | Q18: 60 | R18: 11,292 sek.
B19: 1 | C19: 13 | D19: Vācieši | E19: 97 | F19: 97 | G19: 134 | H19: 89 | I19: 156 | J19: 99 | K19: 19 | L19: 120 | M19: 87 | N19: 75 | O19: 973 | P19: 08 min. 53,593 | Q19: 56 | R19: 09,528 sek.
B20: 3 | C20: 14 | D20: Koklētāji | E20: 90 | F20: 122 | G20: 124 | H20: 66 | I20: 108 | J20: 115 | K20: 59 | L20: 146 | M20: 30 | N20: 99 | O20: 959 | P20: 09 min. 58,249 | Q20: 57 | R20: 10,496 sek.
B21: 3 | C21: 15 | D21: Rogas | E21: 104 | F21: 80 | G21: 119 | H21: 65 | I21: 107 | J21: 65 | K21: 84 | L21: 156 | M21: 73 | N21: 94 | O21: 947 | P21: 08 min. 42,788 | Q21: 54 | R21: 09,681 sek.
B22: 3 | C22: 16 | D22: Swan | E22: 114 | F22: 135 | G22: 114 | H22: 54 | I22: 124 | J22: 47 | K22: 50 | L22: 139 | M22: 43 | N22: 94 | O22: 914 | P22: 07 min. 52,498 | Q22: 52 | R22: 09,087 sek.
B23: 1 | C23: 17 | D23: BraveDucks | E23: 114 | F23: 115 | G23: 74 | H23: 74 | I23: 108 | J23: 99 | K23: 65 | L23: 107 | M23: 60 | N23: 96 | O23: 912 | P23: 08 min. 49,010 | Q23: 52 | R23: 10,173 sek.
B24: 1 | C24: 18 | D24: Salacas Banāni | E24: 115 | F24: 117 | G24: 120 | H24: 48 | I24: 120 | J24: 67 | K24: 72 | L24: 107 | M24: 52 | N24: 83 | O24: 901 | P24: 08 min. 42,651 | Q24: 52 | R24: 10,051 sek.
B25: 3 | C25: 19 | D25: Bugatti 21023 | E25: 126 | F25: 76 | G25: 131 | H25: 87 | I25: 23 | J25: 102 | K25: 43 | L25: 133 | M25: 80 | N25: 97 | O25: 898 | P25: 07 min. 00,335 | Q25: 50 | R25: 08,407 sek.
C26: 20 | D26: nezinu | E26: 111 | F26: 103 | G26: 86 | H26: 45 | I26: 103 | J26: 75 | K26: 45 | L26: 166 | M26: 54 | N26: 84 | O26: 872 | P26: 11 min. 29,785 | Q26: 55 | R26: 12,542 sek.
C27: 21 | D27: Rūķis Stūķis | E27: 89 | F27: 103 | G27: 134 | H27: 83 | I27: 67 | J27: 66 | K27: 40 | L27: 117 | M27: 51 | N27: 95 | O27: 845 | P27: 07 min. 25,693 | Q27: 48 | R27: 09,285 sek.
C28: 22 | D28: Trešā tēva meita | E28: 93 | F28: 118 | G28: 119 | H28: 57 | I28: 83 | J28: 48 | K28: 87 | L28: 136 | M28: 50 | N28: 51 | O28: 842 | P28: 08 min. 23,452 | Q28: 49 | R28: 10,275 sek.
C29: 23 | D29: ttomstt | E29: 97 | F29: 82 | G29: 98 | H29: 47 | I29: 124 | J29: 54 | K29: 72 | L29: 122 | M29: 60 | N29: 63 | O29: 819 | P29: 07 min. 33,010 | Q29: 47 | R29: 09,639 sek.
C30: 24 | D30: Klieši & Draugi | E30: 104 | F30: 97 | G30: 103 | H30: 31 | I30: 70 | J30: 64 | K30: 63 | L30: 149 | M30: 44 | N30: 88 | O30: 813 | P30: 10 min. 45,243 | Q30: 52 | R30: 12,409 sek.
C31: 25 | D31: Twister&Dobby | E31: 106 | F31: 103 | G31: 130 | H31: 72 | I31: 71 | J31: 35 | K31: 50 | L31: 121 | M31: 53 | N31: 67 | O31: 808 | P31: 06 min. 27,611 | Q31: 45 | R31: 08,614 sek.
C32: 26 | D32: Cukuriņi | E32: 102 | F32: 116 | G32: 127 | H32: 83 | I32: 83 | J32: 93 | K32: 32 | L32: 73 | M32: 40 | N32: 44 | O32: 793 | P32: 06 min. 42,599 | Q32: 45 | R32: 08,947 sek.
C33: 27 | D33: Virsskaņas alus iznīcinātājs | E33: 91 | F33: 67 | G33: 77 | H33: 73 | I33: 117 | J33: 89 | K33: 30 | L33: 95 | M33: 112 | N33: 40 | O33: 791 | P33: 06 min. 18,439 | Q33: 43 | R33: 08,801 sek.
C34: 28 | D34: No One | E34: 94 | F34: 127 | G34: 119 | H34: 58 | I34: 52 | J34: 63 | K34: 47 | L34: 88 | M34: 55 | N34: 69 | O34: 772 | P34: 06 min. 41,959 | Q34: 45 | R34: 08,932 sek.
C35: 29 | D35: Morgana | E35: 110 | F35: 114 | G35: 107 | H35: 43 | I35: 110 | J35: 32 | K35: 54 | L35: 87 | M35: 63 | N35: 51 | O35: 771 | P35: 08 min. 32,955 | Q35: 46 | R35: 11,151 sek.
C36: 30 | D36: LBG | E36: 97 | F36: 106 | G36: 128 | H36: 68 | I36: 12 | J36: 64 | K36: 67 | L36: 96 | M36: 68 | N36: 64 | O36: 770 | P36: 07 min. 41,293 | Q36: 46 | R36: 10,028 sek.
C37: 31 | D37: Yao Aģentūra | E37: 88 | F37: 87 | G37: 86 | H37: 41 | I37: 32 | J37: 73 | K37: 57 | L37: 162 | M37: 5 | N37: 100 | O37: 731 | P37: 09 min. 46,386 | Q37: 47 | R37: 12,476 sek.
C38: 32 | D38: Chiltoni | E38: 113 | F38: 87 | G38: 136 | H38: 61 | I38: 21 | J38: 23 | K38: 45 | L38: 97 | M38: 57 | N38: 71 | O38: 711 | P38: 08 min. 06,505 | Q38: 45 | R38: 10,811 sek.
C39: 33 | D39: Chuks | E39: 84 | F39: 118 | G39: 97 | H39: 59 | I39: 50 | J39: 54 | K39: 45 | L39: 101 | M39: 17 | N39: 79 | O39: 704 | P39: 11 min. 01,694 | Q39: 46 | R39: 14,385 sek.
C40: 34 | D40: Pitijs | E40: 109 | F40: 92 | G40: 115 | H40: 56 | I40: 69 | J40: 73 | K40: -1 | L40: 85 | M40: 43 | N40: 42 | O40: 683 | P40: 05 min. 20,994 | Q40: 40 | R40: 08,025 sek.
C41: 35 | D41: Trakie Truši | E41: 74 | F41: 64 | G41: 121 | H41: 47 | I41: 70 | J41: 61 | K41: 22 | L41: 108 | M41: 74 | N41: 21 | O41: 662 | P41: 12 min. 45,525 | Q41: 48 | R41: 15,948 sek.
C42: 36 | D42: Roberti | E42: 73 | F42: 82 | G42: 103 | H42: 59 | I42: 39 | J42: 65 | K42: 35 | L42: 117 | M42: 13 | N42: 73 | O42: 659 | P42: 06 min. 22,246 | Q42: 39 | R42: 09,801 sek.
C43: 37 | D43: John Snicker Ar Kundzi | E43: 91 | F43: 89 | G43: 92 | H43: 52 | I43: 17 | J43: 86 | K43: 29 | L43: 91 | M43: 34 | N43: 73 | O43: 654 | P43: 08 min. 44,583 | Q43: 42 | R43: 12,490 sek.
C44: 38 | D44: Zefīrs | E44: 73 | F44: 72 | G44: 84 | H44: 31 | I44: 68 | J44: 42 | K44: 18 | L44: 130 | M44: 59 | N44: 67 | O44: 644 | P44: 07 min. 08,625 | Q44: 40 | R44: 10,716 sek.
C45: 39 | D45: Saule20 | E45: 106 | F45: 84 | G45: 80 | H45: 7 | I45: 54 | J45: 53 | K45: 38 | L45: 110 | M45: 62 | N45: 50 | O45: 644 | P45: 07 min. 21,205 | Q45: 39 | R45: 11,313 sek.
C46: 40 | D46: Germany | E46: 63 | F46: 88 | G46: 102 | H46: 57 | I46: 86 | J46: 30 | K46: 2 | L46: 126 | M46: 41 | N46: 49 | O46: 644 | P46: 10 min. 14,160 | Q46: 44 | R46: 13,958 sek.
C47: 41 | D47: Pilskalni | E47: 85 | F47: 81 | G47: 65 | H47: 62 | I47: 88 | J47: 55 | K47: -12 | L47: 125 | M47: 33 | N47: 48 | O47: 630 | P47: 09 min. 26,397 | Q47: 41 | R47: 13,815 sek.
C48: 42 | D48: Tikai mieru! | E48: 97 | F48: 39 | G48: 98 | H48: 37 | I48: 70 | J48: 76 | K48: 50 | L48: 108 | M48: 29 | N48: 25 | O48: 629 | P48: 09 min. 25,314 | Q48: 42 | R48: 13,460 sek.
C49: 43 | D49: Stams | E49: 35 | F49: 91 | G49: 77 | H49: 53 | I49: 99 | J49: 33 | K49: -13 | L49: 109 | M49: 51 | N49: 84 | O49: 619 | P49: 10 min. 59,470 | Q49: 44 | R49: 14,988 sek.
C50: 44 | D50: Yuki | E50: 78 | F50: 54 | G50: 94 | H50: 37 | I50: 51 | J50: 75 | K50: 28 | L50: 83 | M50: 64 | N50: 31 | O50: 595 | P50: 08 min. 38,458 | Q50: 41 | R50: 12,645 sek.
C51: 45 | D51: Zvaigžņu iela | E51: 64 | F51: 111 | G51: 105 | H51: 26 | I51: 57 | J51: 47 | K51: -2 | L51: 105 | M51: 27 | N51: 42 | O51: 582 | P51: 05 min. 50,336 | Q51: 36 | R51: 09,732 sek.
C52: 46 | D52: Tēva dēls | E52: 73 | F52: 61 | G52: 68 | H52: 16 | I52: 46 | J52: 102 | K52: -9 | L52: 119 | M52: 27 | N52: 72 | O52: 575 | P52: 09 min. 48,761 | Q52: 41 | R52: 14,360 sek.
C53: 47 | D53: Butenieki | E53: 74 | F53: 72 | G53: 86 | H53: 42 | I53: 19 | J53: 64 | K53: 43 | L53: 96 | M53: 29 | N53: 46 | O53: 571 | P53: 08 min. 05,979 | Q53: 39 | R53: 12,461 sek.
C54: 48 | D54: Anniņmuiža | E54: 88 | F54: 92 | G54: 82 | H54: 46 | I54: 53 | J54: 53 | K54: 17 | L54: 65 | M54: 9 | N54: 62 | O54: 567 | P54: 06 min. 02,749 | Q54: 34 | R54: 10,669 sek.
C55: 49 | D55: Rukšu tētis un sivēni | E55: 101 | F55: 75 | G55: 51 | H55: 8 | I55: 55 | J55: 95 | K55: -3 | L55: 63 | M55: 43 | N55: 49 | O55: 537 | P55: 06 min. 16,060 | Q55: 34 | R55: 11,061 sek.
C56: 50 | D56: Trīs Visvalži | E56: 44 | F56: 75 | G56: 105 | H56: 61 | I56: 43 | J56: 20 | K56: 5 | L56: 101 | M56: 6 | N56: 74 | O56: 534 | P56: 07 min. 48,899 | Q56: 36 | R56: 13,025 sek.
C57: 51 | D57: KARSTI.POPE | E57: 76 | F57: 24 | G57: 70 | H57: 23 | I57: 40 | J57: 67 | K57: 25 | L57: 102 | M57: 39 | N57: 63 | O57: 529 | P57: 10 min. 16,524 | Q57: 39 | R57: 15,808 sek.
C58: 52 | D58: 15.dzīvoklis ir atpakaļ! | E58: 101 | F58: 54 | G58: 93 | H58: 42 | I58: 17 | J58: 82 | K58: -2 | L58: 57 | M58: 7 | N58: 21 | O58: 472 | P58: 04 min. 59,535 | Q58: 29 | R58: 10,329 sek.
C59: 53 | D59: MOPŠI&Co | E59: 68 | F59: 82 | G59: 99 | H59: 18 | I59: 44 | J59: 28 | K59: -22 | L59: 97 | M59: 23 | N59: 33 | O59: 470 | P59: 10 min. 11,240 | Q59: 38 | R59: 16,085 sek.
C60: 54 | D60: Bučmulīši | E60: 45 | F60: 83 | G60: 122 | H60: 11 | I60: 29 | J60: 22 | K60: 32 | L60: 59 | M60: 0 | N60: 17 | O60: 420 | P60: 05 min. 06,925 | Q60: 29 | R60: 10,584 sek.
C61: 55 | D61: Kantoris3 | E61: 77 | F61: 65 | G61: 86 | H61: 13 | I61: 36 | J61: 34 | K61: -53 | L61: 39 | M61: 61 | N61: 17 | O61: 375 | P61: 05 min. 30,790 | Q61: 28 | R61: 11,814 sek.
C62: 56 | D62: TĒVA bērni | E62: 40 | F62: 57 | G62: 75 | H62: 19 | I62: 0 | J62: 19 | K62: 13 | L62: 43 | M62: 0 | N62: 37 | O62: 303 | P62: 03 min. 31,858 | Q62: 22 | R62: 09,630 sek.
C64: LIELDRAUGS ATBALSTĪTĀJI

Sheet 51-100 (hidden)
C2: =tabula!C2 -> Tēva dienas viktorīna LIVE (tiešsaistē/vebinārā) | 2024.gada 8.septembris
B3: Grupa | C3: =tabula!C3 -> # | D3: =tabula!D3 -> Dalībnieks | Raunds | Tēma | Max punkti raundā (bez bonusiem) | E3: =tabula!E3 -> 1 | F3: =tabula!F3 -> 2 | G3: =tabula!G3 -> 3 | H3: =tabula!H3 -> 4 | I3: =tabula!I3 -> 5 | J3: =tabula!J3 -> 6 | K3: =tabula!K3 -> 7 | L3: =tabula!L3 -> 8 | M3: =tabula!M3 -> 9 | N3: =tabula!N3 -> 10 | O3: =tabula!O3 -> KOPĀ | P3: =tabula!P3 -> Laiks kopā | Q3: =tabula!Q3 -> Pareizās atbildes (max) | R3: =tabula!R3 -> Vid.laiks uz 1 pareizo atb.
E4: =tabula!E4 -> Pavediens | F4: =tabula!F4 -> Vizuālais | G4: =tabula!G4 -> Ekspresis | H4: =tabula!H4 -> Burtu mīkla | I4: =tabula!I4 -> Ķēde | J4: =tabula!J4 -> Latvija | K4: =tabula!K4 -> Risks: Tēvi un dēli seriālos un kino | L4: =tabula!L4 -> Kas kopīgs? | M4: =tabula!M4 -> Liekais pazūd ārpus kastes | N4: =tabula!N4 -> Audio
E5: =tabula!E5 -> 150 | F5: =tabula!F5 -> 150 | G5: =tabula!G5 -> 180 | H5: =tabula!H5 -> 180 | I5: =tabula!I5 -> 175 | J5: =tabula!J5 -> 150 | K5: =tabula!K5 -> 120 | L5: =tabula!L5 -> 180 | M5: =tabula!M5 -> 150 | N5: =tabula!N5 -> 150 | O5: =tabula!O5 -> 1585
D6: Vidēji p-ti raundā | E6: =tabula!E6 -> 93 | F6: =tabula!F6 -> 140.8 | G6: =tabula!G6 -> 134.8 | H6: =tabula!H6 -> 83.4 | I6: =tabula!I6 -> 87.4 | J6: =tabula!J6 -> 86.4 | K6: =tabula!K6 -> 30.7 | L6: =tabula!L6 -> 105.3 | M6: =tabula!M6 -> 70.2 | N6: =tabula!N6 -> 62.2 | O6: =tabula!O6 -> 894.2
B7: 3 | C7: =tabula!C55 -> 49 | D7: =tabula!D55 -> 23.dzīvoklis | E7: =tabula!E55 -> 67 | F7: =tabula!F55 -> 135 | G7: =tabula!G55 -> 87 | H7: =tabula!H55 -> 51 | I7: =tabula!I55 -> 70 | J7: =tabula!J55 -> 58 | K7: =tabula!K55 -> 10 | L7: =tabula!L55 -> 107 | M7: =tabula!M55 -> 74 | N7: =tabula!N55 -> 70 | O7: =tabula!O55 -> 729 | P7: =tabula!P55 -> 08 min. 30,907 | Q7: =tabula!Q55 -> 42 | R7: =tabula!R55 -> 12,164 sek.
B8: 1 | C8: =tabula!C56 -> 50 | D8: =tabula!D56 -> Duduls | E8: =tabula!E56 -> 87 | F8: =tabula!F56 -> 146 | G8: =tabula!G56 -> 92 | H8: =tabula!H56 -> 22 | I8: =tabula!I56 -> 91 | J8: =tabula!J56 -> 73 | K8: =tabula!K56 -> 17 | L8: =tabula!L56 -> 92 | M8: =tabula!M56 -> 41 | N8: =tabula!N56 -> 33 | O8: =tabula!O56 -> 694 | P8: =tabula!P56 -> 06 min. 36,658 | Q8: =tabula!Q56 -> 39 | R8: =tabula!R56 -> 10,171 sek.
B9: 1 | C9: =tabula!C57 -> 51 | D9: =tabula!D57 -> Just80% | E9: =tabula!E57 -> 89 | F9: =tabula!F57 -> 104 | G9: =tabula!G57 -> 79 | H9: =tabula!H57 -> 77 | I9: =tabula!I57 -> 74 | J9: =tabula!J57 -> 86 | K9: =tabula!K57 -> 27 | L9: =tabula!L57 -> 55 | M9: =tabula!M57 -> 47 | N9: =tabula!N57 -> 38 | O9: =tabula!O57 -> 676 | P9: =tabula!P57 -> 12 min. 17,100 | Q9: =tabula!Q57 -> 47 | R9: =tabula!R57 -> 15,683 sek.
B10: 3 | C10: =tabula!#REF! ->  | D10: =tabula!#REF! ->  | E10: =tabula!#REF! ->  | F10: =tabula!#REF! ->  | G10: =tabula!#REF! ->  | H10: =tabula!#REF! ->  | I10: =tabula!#REF! ->  | J10: =tabula!#REF! ->  | K10: =tabula!#REF! ->  | L10: =tabula!#REF! ->  | M10: =tabula!#REF! ->  | N10: =tabula!#REF! ->  | O10: =tabula!#REF! ->  | P10: =tabula!#REF! ->  | Q10: =tabula!#REF! ->  | R10: =tabula!#REF! -> 
B11: 1 | C11: =tabula!C58 -> 52 | D11: =tabula!D58 -> Bunkeristi | E11: =tabula!E58 -> 53 | F11: =tabula!F58 -> 122 | G11: =tabula!G58 -> 118 | H11: =tabula!H58 -> 68 | I11: =tabula!I58 -> 63 | J11: =tabula!J58 -> 84 | K11: =tabula!K58 -> -20 | L11: =tabula!L58 -> 96 | M11: =tabula!M58 -> 39 | N11: =tabula!N58 -> 35 | O11: =tabula!O58 -> 658 | P11: =tabula!P58 -> 06 min. 34,644 | Q11: =tabula!Q58 -> 37 | R11: =tabula!R58 -> 10,666 sek.
B12: 3 | C12: =tabula!C59 -> 53 | D12: =tabula!D59 -> Jāņabērns | E12: =tabula!E59 -> 58 | F12: =tabula!F59 -> 120 | G12: =tabula!G59 -> 142 | H12: =tabula!H59 -> 27 | I12: =tabula!I59 -> 104 | J12: =tabula!J59 -> 61 | K12: =tabula!K59 -> 11 | L12: =tabula!L59 -> 65 | M12: =tabula!M59 -> 26 | N12: =tabula!N59 -> 41 | O12: =tabula!O59 -> 655 | P12: =tabula!P59 -> 10 min. 39,055 | Q12: =tabula!Q59 -> 43 | R12: =tabula!R59 -> 14,862 sek.
B13: 1 | C13: =tabula!C60 -> 54 | D13: =tabula!D60 -> Zizzle | E13: =tabula!E60 -> 56 | F13: =tabula!F60 -> 129 | G13: =tabula!G60 -> 92 | H13: =tabula!H60 -> 90 | I13: =tabula!I60 -> 72 | J13: =tabula!J60 -> 41 | K13: =tabula!K60 -> -30 | L13: =tabula!L60 -> 77 | M13: =tabula!M60 -> 70 | N13: =tabula!N60 -> 19 | O13: =tabula!O60 -> 616 | P13: =tabula!P60 -> 07 min. 39,483 | Q13: =tabula!Q60 -> 36 | R13: =tabula!R60 -> 12,763 sek.
B14: 1 | C14: =tabula!C61 -> 55 | D14: =tabula!D61 -> Smaidas | E14: =tabula!E61 -> 38 | F14: =tabula!F61 -> 103 | G14: =tabula!G61 -> 89 | H14: =tabula!H61 -> 76 | I14: =tabula!I61 -> 39 | J14: =tabula!J61 -> 67 | K14: =tabula!K61 -> 27 | L14: =tabula!L61 -> 61 | M14: =tabula!M61 -> 42 | N14: =tabula!N61 -> 40 | O14: =tabula!O61 -> 582 | P14: =tabula!P61 -> 11 min. 45,211 | Q14: =tabula!Q61 -> 43 | R14: =tabula!R61 -> 16,400 sek.
B15: 2 | C15: =tabula!C62 -> 56 | D15: =tabula!D62 -> Kanelūri | E15: =tabula!E62 -> 69 | F15: =tabula!F62 -> 105 | G15: =tabula!G62 -> 101 | H15: =tabula!H62 -> 63 | I15: =tabula!I62 -> 59 | J15: =tabula!J62 -> 60 | K15: =tabula!K62 -> -8 | L15: =tabula!L62 -> 40 | M15: =tabula!M62 -> 66 | N15: =tabula!N62 -> 16 | O15: =tabula!O62 -> 571 | P15: =tabula!P62 -> 08 min. 59,922 | Q15: =tabula!Q62 -> 38 | R15: =tabula!R62 -> 14,208 sek.
B16: 3 | C16: =tabula!C63 -> 0 | D16: =tabula!D63 -> 0 | E16: =tabula!E63 -> 0 | F16: =tabula!F63 -> 0 | G16: =tabula!G63 -> 0 | H16: =tabula!H63 -> 0 | I16: =tabula!I63 -> 0 | J16: =tabula!J63 -> 0 | K16: =tabula!K63 -> 0 | L16: =tabula!L63 -> 0 | M16: =tabula!M63 -> 0 | N16: =tabula!N63 -> 0 | O16: =tabula!O63 -> 0 | P16: =tabula!P63 -> 0 | Q16: =tabula!Q63 -> 0 | R16: =tabula!R63 -> 0
B17: 2 | C17: =tabula!C64 -> 0 | D17: =tabula!D64 -> 0 | E17: =tabula!E64 -> 0 | F17: =tabula!F64 -> 0 | G17: =tabula!G64 -> 0 | H17: =tabula!H64 -> 0 | I17: =tabula!I64 -> 0 | J17: =tabula!J64 -> 0 | K17: =tabula!K64 -> 0 | L17: =tabula!L64 -> 0 | M17: =tabula!M64 -> 0 | N17: =tabula!N64 -> 0 | O17: =tabula!O64 -> 0 | P17: =tabula!P64 -> 0 | Q17: =tabula!Q64 -> 0 | R17: =tabula!R64 -> 0
B18: 2 | C18: =tabula!C65 -> 0 | D18: =tabula!D65 -> 0 | E18: =tabula!E65 -> 0 | F18: =tabula!F65 -> 0 | G18: =tabula!G65 -> 0 | H18: =tabula!H65 -> 0 | I18: =tabula!I65 -> 0 | J18: =tabula!J65 -> 0 | K18: =tabula!K65 -> 0 | L18: =tabula!L65 -> 0 | M18: =tabula!M65 -> 0 | N18: =tabula!N65 -> 0 | O18: =tabula!O65 -> 0 | P18: =tabula!P65 -> 0 | Q18: =tabula!Q65 -> 0 | R18: =tabula!R65 -> 0
B19: 2 | C19: =tabula!C66 -> 0 | D19: =tabula!D66 -> 0 | E19: =tabula!E66 -> 0 | F19: =tabula!F66 -> 0 | G19: =tabula!G66 -> 0 | H19: =tabula!H66 -> 0 | I19: =tabula!I66 -> 0 | J19: =tabula!J66 -> 0 | K19: =tabula!K66 -> 0 | L19: =tabula!L66 -> 0 | M19: =tabula!M66 -> 0 | N19: =tabula!N66 -> 0 | O19: =tabula!O66 -> 0 | P19: =tabula!P66 -> 0 | Q19: =tabula!Q66 -> 0 | R19: =tabula!R66 -> 0
B20: 3 | C20: =tabula!C67 -> 0 | D20: =tabula!D67 -> 0 | E20: =tabula!E67 -> 0 | F20: =tabula!F67 -> 0 | G20: =tabula!G67 -> 0 | H20: =tabula!H67 -> 0 | I20: =tabula!I67 -> 0 | J20: =tabula!J67 -> 0 | K20: =tabula!K67 -> 0 | L20: =tabula!L67 -> 0 | M20: =tabula!M67 -> 0 | N20: =tabula!N67 -> 0 | O20: =tabula!O67 -> 0 | P20: =tabula!P67 -> 0 | Q20: =tabula!Q67 -> 0 | R20: =tabula!R67 -> 0
B21: 1 | C21: =tabula!C68 -> 0 | D21: =tabula!D68 -> 0 | E21: =tabula!E68 -> 0 | F21: =tabula!F68 -> 0 | G21: =tabula!G68 -> 0 | H21: =tabula!H68 -> 0 | I21: =tabula!I68 -> 0 | J21: =tabula!J68 -> 0 | K21: =tabula!K68 -> 0 | L21: =tabula!L68 -> 0 | M21: =tabula!M68 -> 0 | N21: =tabula!N68 -> 0 | O21: =tabula!O68 -> 0 | P21: =tabula!P68 -> 0 | Q21: =tabula!Q68 -> 0 | R21: =tabula!R68 -> 0
B22: 3 | C22: =tabula!C69 -> 0 | D22: =tabula!D69 -> 0 | E22: =tabula!E69 -> 0 | F22: =tabula!F69 -> 0 | G22: =tabula!G69 -> 0 | H22: =tabula!H69 -> 0 | I22: =tabula!I69 -> 0 | J22: =tabula!J69 -> 0 | K22: =tabula!K69 -> 0 | L22: =tabula!L69 -> 0 | M22: =tabula!M69 -> 0 | N22: =tabula!N69 -> 0 | O22: =tabula!O69 -> 0 | P22: =tabula!P69 -> 0 | Q22: =tabula!Q69 -> 0 | R22: =tabula!R69 -> 0
B23: 3 | C23: =tabula!C70 -> 0 | D23: =tabula!D70 -> 0 | E23: =tabula!E70 -> 0 | F23: =tabula!F70 -> 0 | G23: =tabula!G70 -> 0 | H23: =tabula!H70 -> 0 | I23: =tabula!I70 -> 0 | J23: =tabula!J70 -> 0 | K23: =tabula!K70 -> 0 | L23: =tabula!L70 -> 0 | M23: =tabula!M70 -> 0 | N23: =tabula!N70 -> 0 | O23: =tabula!O70 -> 0 | P23: =tabula!P70 -> 0 | Q23: =tabula!Q70 -> 0 | R23: =tabula!R70 -> 0
B24: 3 | C24: =tabula!C71 -> 0 | D24: =tabula!D71 -> 0 | E24: =tabula!E71 -> 0 | F24: =tabula!F71 -> 0 | G24: =tabula!G71 -> 0 | H24: =tabula!H71 -> 0 | I24: =tabula!I71 -> 0 | J24: =tabula!J71 -> 0 | K24: =tabula!K71 -> 0 | L24: =tabula!L71 -> 0 | M24: =tabula!M71 -> 0 | N24: =tabula!N71 -> 0 | O24: =tabula!O71 -> 0 | P24: =tabula!P71 -> 0 | Q24: =tabula!Q71 -> 0 | R24: =tabula!R71 -> 0
B25: 1 | C25: =tabula!#REF! ->  | D25: =tabula!#REF! ->  | E25: =tabula!#REF! ->  | F25: =tabula!#REF! ->  | G25: =tabula!#REF! ->  | H25: =tabula!#REF! ->  | I25: =tabula!#REF! ->  | J25: =tabula!#REF! ->  | K25: =tabula!#REF! ->  | L25: =tabula!#REF! ->  | M25: =tabula!#REF! ->  | N25: =tabula!#REF! ->  | O25: =tabula!#REF! ->  | P25: =tabula!#REF! ->  | Q25: =tabula!#REF! ->  | R25: =tabula!#REF! -> 
B26: 1 | C26: =tabula!#REF! ->  | D26: =tabula!#REF! ->  | E26: =tabula!#REF! ->  | F26: =tabula!#REF! ->  | G26: =tabula!#REF! ->  | H26: =tabula!#REF! ->  | I26: =tabula!#REF! ->  | J26: =tabula!#REF! ->  | K26: =tabula!#REF! ->  | L26: =tabula!#REF! ->  | M26: =tabula!#REF! ->  | N26: =tabula!#REF! ->  | O26: =tabula!#REF! ->  | P26: =tabula!#REF! ->  | Q26: =tabula!#REF! ->  | R26: =tabula!#REF! -> 
B27: 3 | C27: =tabula!#REF! ->  | D27: =tabula!#REF! ->  | E27: =tabula!#REF! ->  | F27: =tabula!#REF! ->  | G27: =tabula!#REF! ->  | H27: =tabula!#REF! ->  | I27: =tabula!#REF! ->  | J27: =tabula!#REF! ->  | K27: =tabula!#REF! ->  | L27: =tabula!#REF! ->  | M27: =tabula!#REF! ->  | N27: =tabula!#REF! ->  | O27: =tabula!#REF! ->  | P27: =tabula!#REF! ->  | Q27: =tabula!#REF! ->  | R27: =tabula!#REF! -> 
C28: =tabula!#REF! ->  | D28: =tabula!#REF! ->  | E28: =tabula!#REF! ->  | F28: =tabula!#REF! ->  | G28: =tabula!#REF! ->  | H28: =tabula!#REF! ->  | I28: =tabula!#REF! ->  | J28: =tabula!#REF! ->  | K28: =tabula!#REF! ->  | L28: =tabula!#REF! ->  | M28: =tabula!#REF! ->  | N28: =tabula!#REF! ->  | O28: =tabula!#REF! ->  | P28: =tabula!#REF! ->  | Q28: =tabula!#REF! ->  | R28: =tabula!#REF! -> 
C29: =tabula!#REF! ->  | D29: =tabula!#REF! ->  | E29: =tabula!#REF! ->  | F29: =tabula!#REF! ->  | G29: =tabula!#REF! ->  | H29: =tabula!#REF! ->  | I29: =tabula!#REF! ->  | J29: =tabula!#REF! ->  | K29: =tabula!#REF! ->  | L29: =tabula!#REF! ->  | M29: =tabula!#REF! ->  | N29: =tabula!#REF! ->  | O29: =tabula!#REF! ->  | P29: =tabula!#REF! ->  | Q29: =tabula!#REF! ->  | R29: =tabula!#REF! -> 
C30: =tabula!#REF! ->  | D30: =tabula!#REF! ->  | E30: =tabula!#REF! ->  | F30: =tabula!#REF! ->  | G30: =tabula!#REF! ->  | H30: =tabula!#REF! ->  | I30: =tabula!#REF! ->  | J30: =tabula!#REF! ->  | K30: =tabula!#REF! ->  | L30: =tabula!#REF! ->  | M30: =tabula!#REF! ->  | N30: =tabula!#REF! ->  | O30: =tabula!#REF! ->  | P30: =tabula!#REF! ->  | Q30: =tabula!#REF! ->  | R30: =tabula!#REF! -> 
C31: =tabula!#REF! ->  | D31: =tabula!#REF! ->  | E31: =tabula!#REF! ->  | F31: =tabula!#REF! ->  | G31: =tabula!#REF! ->  | H31: =tabula!#REF! ->  | I31: =tabula!#REF! ->  | J31: =tabula!#REF! ->  | K31: =tabula!#REF! ->  | L31: =tabula!#REF! ->  | M31: =tabula!#REF! ->  | N31: =tabula!#REF! ->  | O31: =tabula!#REF! ->  | P31: =tabula!#REF! ->  | Q31: =tabula!#REF! ->  | R31: =tabula!#REF! -> 
C32: =tabula!#REF! ->  | D32: =tabula!#REF! ->  | E32: =tabula!#REF! ->  | F32: =tabula!#REF! ->  | G32: =tabula!#REF! ->  | H32: =tabula!#REF! ->  | I32: =tabula!#REF! ->  | J32: =tabula!#REF! ->  | K32: =tabula!#REF! ->  | L32: =tabula!#REF! ->  | M32: =tabula!#REF! ->  | N32: =tabula!#REF! ->  | O32: =tabula!#REF! ->  | P32: =tabula!#REF! ->  | Q32: =tabula!#REF! ->  | R32: =tabula!#REF! -> 
C33: =tabula!#REF! ->  | D33: =tabula!#REF! ->  | E33: =tabula!#REF! ->  | F33: =tabula!#REF! ->  | G33: =tabula!#REF! ->  | H33: =tabula!#REF! ->  | I33: =tabula!#REF! ->  | J33: =tabula!#REF! ->  | K33: =tabula!#REF! ->  | L33: =tabula!#REF! ->  | M33: =tabula!#REF! ->  | N33: =tabula!#REF! ->  | O33: =tabula!#REF! ->  | P33: =tabula!#REF! ->  | Q33: =tabula!#REF! ->  | R33: =tabula!#REF! -> 
C34: =tabula!#REF! ->  | D34: =tabula!#REF! ->  | E34: =tabula!#REF! ->  | F34: =tabula!#REF! ->  | G34: =tabula!#REF! ->  | H34: =tabula!#REF! ->  | I34: =tabula!#REF! ->  | J34: =tabula!#REF! ->  | K34: =tabula!#REF! ->  | L34: =tabula!#REF! ->  | M34: =tabula!#REF! ->  | N34: =tabula!#REF! ->  | O34: =tabula!#REF! ->  | P34: =tabula!#REF! ->  | Q34: =tabula!#REF! ->  | R34: =tabula!#REF! -> 
C35: =tabula!#REF! ->  | D35: =tabula!#REF! ->  | E35: =tabula!#REF! ->  | F35: =tabula!#REF! ->  | G35: =tabula!#REF! ->  | H35: =tabula!#REF! ->  | I35: =tabula!#REF! ->  | J35: =tabula!#REF! ->  | K35: =tabula!#REF! ->  | L35: =tabula!#REF! ->  | M35: =tabula!#REF! ->  | N35: =tabula!#REF! ->  | O35: =tabula!#REF! ->  | P35: =tabula!#REF! ->  | Q35: =tabula!#REF! ->  | R35: =tabula!#REF! -> 
C36: =tabula!#REF! ->  | D36: =tabula!#REF! ->  | E36: =tabula!#REF! ->  | F36: =tabula!#REF! ->  | G36: =tabula!#REF! ->  | H36: =tabula!#REF! ->  | I36: =tabula!#REF! ->  | J36: =tabula!#REF! ->  | K36: =tabula!#REF! ->  | L36: =tabula!#REF! ->  | M36: =tabula!#REF! ->  | N36: =tabula!#REF! ->  | O36: =tabula!#REF! ->  | P36: =tabula!#REF! ->  | Q36: =tabula!#REF! ->  | R36: =tabula!#REF! -> 
C37: =tabula!#REF! ->  | D37: =tabula!#REF! ->  | E37: =tabula!#REF! ->  | F37: =tabula!#REF! ->  | G37: =tabula!#REF! ->  | H37: =tabula!#REF! ->  | I37: =tabula!#REF! ->  | J37: =tabula!#REF! ->  | K37: =tabula!#REF! ->  | L37: =tabula!#REF! ->  | M37: =tabula!#REF! ->  | N37: =tabula!#REF! ->  | O37: =tabula!#REF! ->  | P37: =tabula!#REF! ->  | Q37: =tabula!#REF! ->  | R37: =tabula!#REF! -> 
C38: =tabula!#REF! ->  | D38: =tabula!#REF! ->  | E38: =tabula!#REF! ->  | F38: =tabula!#REF! ->  | G38: =tabula!#REF! ->  | H38: =tabula!#REF! ->  | I38: =tabula!#REF! ->  | J38: =tabula!#REF! ->  | K38: =tabula!#REF! ->  | L38: =tabula!#REF! ->  | M38: =tabula!#REF! ->  | N38: =tabula!#REF! ->  | O38: =tabula!#REF! ->  | P38: =tabula!#REF! ->  | Q38: =tabula!#REF! ->  | R38: =tabula!#REF! -> 
C39: =tabula!#REF! ->  | D39: =tabula!#REF! ->  | E39: =tabula!#REF! ->  | F39: =tabula!#REF! ->  | G39: =tabula!#REF! ->  | H39: =tabula!#REF! ->  | I39: =tabula!#REF! ->  | J39: =tabula!#REF! ->  | K39: =tabula!#REF! ->  | L39: =tabula!#REF! ->  | M39: =tabula!#REF! ->  | N39: =tabula!#REF! ->  | O39: =tabula!#REF! ->  | P39: =tabula!#REF! ->  | Q39: =tabula!#REF! ->  | R39: =tabula!#REF! -> 
C40: =tabula!#REF! ->  | D40: =tabula!#REF! ->  | E40: =tabula!#REF! ->  | F40: =tabula!#REF! ->  | G40: =tabula!#REF! ->  | H40: =tabula!#REF! ->  | I40: =tabula!#REF! ->  | J40: =tabula!#REF! ->  | K40: =tabula!#REF! ->  | L40: =tabula!#REF! ->  | M40: =tabula!#REF! ->  | N40: =tabula!#REF! ->  | O40: =tabula!#REF! ->  | P40: =tabula!#REF! ->  | Q40: =tabula!#REF! ->  | R40: =tabula!#REF! -> 
C41: =tabula!#REF! ->  | D41: =tabula!#REF! ->  | E41: =tabula!#REF! ->  | F41: =tabula!#REF! ->  | G41: =tabula!#REF! ->  | H41: =tabula!#REF! ->  | I41: =tabula!#REF! ->  | J41: =tabula!#REF! ->  | K41: =tabula!#REF! ->  | L41: =tabula!#REF! ->  | M41: =tabula!#REF! ->  | N41: =tabula!#REF! ->  | O41: =tabula!#REF! ->  | P41: =tabula!#REF! ->  | Q41: =tabula!#REF! ->  | R41: =tabula!#REF! -> 
C42: =tabula!#REF! ->  | D42: =tabula!#REF! ->  | E42: =tabula!#REF! ->  | F42: =tabula!#REF! ->  | G42: =tabula!#REF! ->  | H42: =tabula!#REF! ->  | I42: =tabula!#REF! ->  | J42: =tabula!#REF! ->  | K42: =tabula!#REF! ->  | L42: =tabula!#REF! ->  | M42: =tabula!#REF! ->  | N42: =tabula!#REF! ->  | O42: =tabula!#REF! ->  | P42: =tabula!#REF! ->  | Q42: =tabula!#REF! ->  | R42: =tabula!#REF! -> 
C43: =tabula!#REF! ->  | D43: =tabula!#REF! ->  | E43: =tabula!#REF! ->  | F43: =tabula!#REF! ->  | G43: =tabula!#REF! ->  | H43: =tabula!#REF! ->  | I43: =tabula!#REF! ->  | J43: =tabula!#REF! ->  | K43: =tabula!#REF! ->  | L43: =tabula!#REF! ->  | M43: =tabula!#REF! ->  | N43: =tabula!#REF! ->  | O43: =tabula!#REF! ->  | P43: =tabula!#REF! ->  | Q43: =tabula!#REF! ->  | R43: =tabula!#REF! -> 
C44: =tabula!#REF! ->  | D44: =tabula!#REF! ->  | E44: =tabula!#REF! ->  | F44: =tabula!#REF! ->  | G44: =tabula!#REF! ->  | H44: =tabula!#REF! ->  | I44: =tabula!#REF! ->  | J44: =tabula!#REF! ->  | K44: =tabula!#REF! ->  | L44: =tabula!#REF! ->  | M44: =tabula!#REF! ->  | N44: =tabula!#REF! ->  | O44: =tabula!#REF! ->  | P44: =tabula!#REF! ->  | Q44: =tabula!#REF! ->  | R44: =tabula!#REF! -> 
C45: =tabula!#REF! ->  | D45: =tabula!#REF! ->  | E45: =tabula!#REF! ->  | F45: =tabula!#REF! ->  | G45: =tabula!#REF! ->  | H45: =tabula!#REF! ->  | I45: =tabula!#REF! ->  | J45: =tabula!#REF! ->  | K45: =tabula!#REF! ->  | L45: =tabula!#REF! ->  | M45: =tabula!#REF! ->  | N45: =tabula!#REF! ->  | O45: =tabula!#REF! ->  | P45: =tabula!#REF! ->  | Q45: =tabula!#REF! ->  | R45: =tabula!#REF! -> 
C46: =tabula!#REF! ->  | D46: =tabula!#REF! ->  | E46: =tabula!#REF! ->  | F46: =tabula!#REF! ->  | G46: =tabula!#REF! ->  | H46: =tabula!#REF! ->  | I46: =tabula!#REF! ->  | J46: =tabula!#REF! ->  | K46: =tabula!#REF! ->  | L46: =tabula!#REF! ->  | M46: =tabula!#REF! ->  | N46: =tabula!#REF! ->  | O46: =tabula!#REF! ->  | P46: =tabula!#REF! ->  | Q46: =tabula!#REF! ->  | R46: =tabula!#REF! -> 
C47: =tabula!#REF! ->  | D47: =tabula!#REF! ->  | E47: =tabula!#REF! ->  | F47: =tabula!#REF! ->  | G47: =tabula!#REF! ->  | H47: =tabula!#REF! ->  | I47: =tabula!#REF! ->  | J47: =tabula!#REF! ->  | K47: =tabula!#REF! ->  | L47: =tabula!#REF! ->  | M47: =tabula!#REF! ->  | N47: =tabula!#REF! ->  | O47: =tabula!#REF! ->  | P47: =tabula!#REF! ->  | Q47: =tabula!#REF! ->  | R47: =tabula!#REF! -> 
C48: =tabula!#REF! ->  | D48: =tabula!#REF! ->  | E48: =tabula!#REF! ->  | F48: =tabula!#REF! ->  | G48: =tabula!#REF! ->  | H48: =tabula!#REF! ->  | I48: =tabula!#REF! ->  | J48: =tabula!#REF! ->  | K48: =tabula!#REF! ->  | L48: =tabula!#REF! ->  | M48: =tabula!#REF! ->  | N48: =tabula!#REF! ->  | O48: =tabula!#REF! ->  | P48: =tabula!#REF! ->  | Q48: =tabula!#REF! ->  | R48: =tabula!#REF! -> 
C49: =tabula!#REF! ->  | D49: =tabula!#REF! ->  | E49: =tabula!#REF! ->  | F49: =tabula!#REF! ->  | G49: =tabula!#REF! ->  | H49: =tabula!#REF! ->  | I49: =tabula!#REF! ->  | J49: =tabula!#REF! ->  | K49: =tabula!#REF! ->  | L49: =tabula!#REF! ->  | M49: =tabula!#REF! ->  | N49: =tabula!#REF! ->  | O49: =tabula!#REF! ->  | P49: =tabula!#REF! ->  | Q49: =tabula!#REF! ->  | R49: =tabula!#REF! -> 
C50: =tabula!#REF! ->  | D50: =tabula!#REF! ->  | E50: =tabula!#REF! ->  | F50: =tabula!#REF! ->  | G50: =tabula!#REF! ->  | H50: =tabula!#REF! ->  | I50: =tabula!#REF! ->  | J50: =tabula!#REF! ->  | K50: =tabula!#REF! ->  | L50: =tabula!#REF! ->  | M50: =tabula!#REF! ->  | N50: =tabula!#REF! ->  | O50: =tabula!#REF! ->  | P50: =tabula!#REF! ->  | Q50: =tabula!#REF! ->  | R50: =tabula!#REF! -> 
C51: =tabula!#REF! ->  | D51: =tabula!#REF! ->  | E51: =tabula!#REF! ->  | F51: =tabula!#REF! ->  | G51: =tabula!#REF! ->  | H51: =tabula!#REF! ->  | I51: =tabula!#REF! ->  | J51: =tabula!#REF! ->  | K51: =tabula!#REF! ->  | L51: =tabula!#REF! ->  | M51: =tabula!#REF! ->  | N51: =tabula!#REF! ->  | O51: =tabula!#REF! ->  | P51: =tabula!#REF! ->  | Q51: =tabula!#REF! ->  | R51: =tabula!#REF! -> 
C53: LIELDRAUGS ATBALSTĪTĀJI

Sheet raundi
B2: =CONCATENATE(tabula!C2," --> Raundu uzvarētāji") -> Tēva dienas viktorīna LIVE (tiešsaistē/vebinārā) | 2024.gada 8.septembris --> Raundu uzvarētāji
B3: # | C3: Raunda nosaukums | D3: Dalībnieks | E3: Rezultāts | F3: AVG | G3: MAX | H3: % no max
B4: 1 | C4: =TRANSPOSE(tabula!E4:N4) -> Pavediens | D4: Rupuči, turās! | E4: 137 | F4: =TRANSPOSE('1-50'!E6:N6) -> 93.91 | G4: =TRANSPOSE(tabula!E5:N5) -> 150 | H4: =E4/G4 -> 0.9133333333
B5: 2 | C5: Vizuālais | D5: Bandītu perēklis | E5: 140 | F5: 92.77 | G5: 150 | H5: =E5/G5 -> 0.9333333333
B6: 3 | C6: Ekspresis | D6: Tētuks DJV | E6: 162 | F6: 103.16 | G6: 180 | H6: 0.9
B7: 4 | C7: Burtu mīkla | D7: Rupuči, turās! | E7: 126 | F7: 57.89 | G7: 180 | H7: 0.7
B8: 5 | C8: Ķēde | D8: Pundurplanēta | E8: 170 | F8: 80.38 | G8: 175 | H8: 0.9714285714
B9: 6 | C9: Latvija | D9: Pirmie matiņi | E9: 137 | F9: 69.71 | G9: 150 | H9: 0.9133333333
B10: 7 | C10: Risks: Tēvi un dēli seriālos un kino | D10: Rupuči, turās! | E10: 103 | F10: 40.63 | G10: 120 | H10: 0.8583333333
B11: 8 | C11: Kas kopīgs? | D11: nezinu | E11: 166 | F11: 113.2 | G11: 180 | H11: 0.9222222222
B12: 9 | C12: Liekais pazūd ārpus kastes | D12: VMR | E12: 130 | F12: 55.07 | G12: 150 | H12: 0.8666666667
B13: 10 | C13: Audio | D13: Tētuks DJV | E13: 121 | F13: 68.8 | G13: 150 | H13: 0.8066666667
B14: - | C14: Uzvarētājs | E14: =tabula!O7 -> 1232 | F14: =tabula!O6 -> 894.2 | G14: =SUM(G4:G13) -> 1585 | H14: =E14/G14 -> 0.7772870662
C15: ='1-50'!D7 -> Tētuks DJV
B17: LIELDRAUGS ATBALSTĪTĀJI
